{"text_format":"1","workbook":"xlsx","n_sheets":11,"sheets":["About","1. Instructions","2. Data Entry","3. Transaction Details","4. Methodology","Controllers","Calculations","CalcReference","Reference","Supply Chain Multipliers","Industry Weights"],"not_rendered":{"charts":0,"images":5,"macros":1,"external_links":0,"defined_names":11,"comments":0,"pivot_tables":0},"unopened":[],"bounds":{"document_bytes":16777216,"sheet_cells":100000,"rows_first":2000,"rows_last":500,"rows_between":2000,"halvings":0,"cell_chars":16384,"cell_head_chars":4096},"cells_cut":0,"cells_raw":0,"read":"whole","date_system":"1900"}

{"sheet":"About","index":0,"n_rows":21,"n_cols":6,"rows_kept":21,"cut":false,"hidden":false,"merged":[[13,2,13,13],[20,2,22,13]]}
[]
[null,"  About this calculator"]
[]
[]
[null,null,"Click to conctact us:",null,null,"Email"]
[null,null,null,null,null,"Website"]
[]
[]
[]
[]
[null,null,"Important:",null,"This workbook contains macros to improve user experience. Please make sure that macros are switched on. "]
[null,null,null,null,"Macro Instructions (Courtesy of Microsoft)"]
[]
[null,null,"This calculator is a free tool designed to help Corporate Social Responsibility (CSR) teams understand how sustainable cotton purchases impact their strategic goals. It is designed for use by apparel & fashion brands selling menswear and womenswear clothing.\n\nDeveloped by Elementaly and distributed free of charge. Elementaly provides practical, efficient and effective specialist sustainability services. By giving bespoke advice and implementation support we help businesses track their sustainability progress, engage their employees and reach their targets."]
[null,null," "]
[null,null,"Definitions"]
[]
[null,null,"More sustainable cotton: Cotton from the Better Cotton Initiative, Cotton Made in Africa (CMiA), certified organic or certified recycled sources."]
[null,null,"This definition is reviewed on a periodic basis."]
[]
[null,null,"Created by Elementaly. Copyright 2017, all rights reserved. \nThis workbook is available to anyone to use as a free tool, but must not be modified or repackaged or sold in any way.\nThe data entered in this workbook is stored for calculations only. We never collect any data from you without your explicit permission.\nThis workbook uses macros to enhance user experience; for example automatically hiding and unhiding questions based on your responses.\nIf you prefer a macro-free version, please contact us using the links above."]

{"sheet":"1. Instructions","index":1,"n_rows":19,"n_cols":6,"rows_kept":19,"cut":false,"hidden":false,"merged":[[10,2,10,13],[14,2,14,13],[18,2,18,13]]}
[]
[null,"1. Instructions"]
[]
[]
[null,null,"Click to conctact us:",null,null,"Email"]
[null,null,null,null,null,"Website"]
[]
[]
[null,null,"Sheet: Data Entry"]
[]
[null,null,"This sheet is used to collect basic information about your cotton use, which is used to calculate the weight of cotton in your products for a given year. This is used to calculate the total amount of more sustainable cotton needed to hit your target."]
[]
[null,null,"Sheet: Forecasting"]
[]
[null,null,"This sheet is used to calculate the impact on your strategy of a purchase of products that contain more sustainable cotton. Once details of a transaction are entered, the workbook will calculate the impact this transaction has on your overall sustainable cotton target.\n\nYou can use this sheet both retrospectively; to see the impact of an existing purchase, or proactively, for example to help commercial teams make decisions about purchases."]
[]
[null,null,"Sheet: Methodology"]
[]
[null,null,"Refer to this sheet for more details on how we calculate your results and the underlying assumptions."]

{"sheet":"2. Data Entry","index":2,"n_rows":28,"n_cols":11,"rows_kept":28,"cut":false,"hidden":false,"merged":[[16,3,16,10],[27,3,27,10]]}
[]
[null,"2. Data Entry"]
[]
[]
[null,null,"Click to conctact us:",null,null,"Email"]
[null,null,null,null,null,"Website"]
[]
[null,null,"1. How would you like to calculate your brand's baseline cotton use?"]
[null,null," ",{"$f":"IF(ISBLANK(K8),\"Please select an option from the drop down list\",\"\")","v":"Please select an option from the drop down list"}]
[]
[null,null,null,"1a. Total cotton use (per year)"]
[null,null,null,null,{"$f":"IF(ISBLANK(K11),\"Please enter a value\",\"\")","v":"Please enter a value"}]
[]
[null,null,null,"1b. What units is your cotton use measured in?"]
[null,null,null,null,{"$f":"IF(ISBLANK(K14),\"Please select a unit from the drop down list\",\"\")","v":"Please select a unit from the drop down list"}]
[]
[null,null,null,"Guidance: Only include the weight of all types of cotton. Do not include synthetics, animal fibres etc."]
[]
[null,null,null,"1a. Total product sales (pieces per year)"]
[null,null,null,null,{"$f":"IF(ISBLANK(K19),\"Please enter a value\",\"\")","v":"Please enter a value"}]
[]
[null,null,null,"1b. What type of products do you typically sell?"]
[null,null,null,null,{"$f":"IF(ISBLANK(K22),\"Please enter a value\",\"\")","v":"Please enter a value"}]
[]
[null,null,null,"1c. Typical proportion of cotton in your textiles:",null,null,null,null,null,null,0.55000000000000004]
[null,null,null,null,{"$f":"IF(ISBLANK(K25),\"Please enter a value\",\"\")","v":""}]
[]
[null,null,null,"Guidance: Include all textile products only. We assume a typical mix of 55% cotton. To change this assumption, enter a new value in the box"]

{"sheet":"3. Transaction Details","index":3,"n_rows":38,"n_cols":13,"rows_kept":38,"cut":false,"hidden":false,"merged":[[30,3,30,12],[34,2,34,12],[10,2,10,12]]}
[]
[null,"3. Transaction Details"]
[]
[]
[null,null,"Click to conctact us:",null,null,"Email"]
[null,null,null,null,null,"Website"]
[]
[null,null,"1. For this transaction, how would you like to calculate the weight of sustainable cotton?"]
[null,null,null,{"$f":"IF(ISBLANK(M8),\"Please select an option from the drop down list\",\"\")","v":"Please select an option from the drop down list"}]
[]
[null,null,"Using product details: Use this option if you know how many products are being purchased in the transaction and the proportion of sustainable cotton they contain \n\nUsing chain of custody evidence: Use this option if you know the number of BCCUs, Kg of CMiA or Kg of organic / recycled cotton included in the transaction."]
[]
[null,null,"2. Select product type:"]
[null,null," ",{"$f":"IF(ISBLANK(M13),\"Please select an option from the drop down list\",\"\")","v":"Please select an option from the drop down list"}]
[]
[null,null,null,"2a. Typical sustainable cotton proportion (%)"]
[null,null,null,null,{"$f":"IF(ISBLANK(M16),\"Please enter a value\",\"\")","v":"Please enter a value"}]
[]
[null,null,null,"2b. Volume (units / pieces) purchased:"]
[null,null,null,null,{"$f":"IF(ISBLANK(M19),\"Please enter a value\",\"\")","v":"Please enter a value"}]
[]
[null,null,"3. What type of chain of custody evidence are you using?"]
[null,null,{"$f":"IF(ISBLANK(M22),\"Please enter a value\",\"\")","v":"Please enter a value"}]
[]
[null,null,null,{"$f":"IF(ISBLANK(M22),\"3a. Total units received\",\"3a. Total \"&M22&\" received:\")","v":"3a. Total units received"}]
[null,null,null,null,{"$f":"IF(ISBLANK(M25),\"Please enter a value\",\"\")","v":"Please enter a value"}]
[]
[null,null,null,"3b. Proportion of recycled or organic material:"]
[null,null,null,null,{"$f":"IFERROR(IF(VLOOKUP(M22,Reference!J:L,3,FALSE)=TRUE,\"Do not enter data into this cell\",IF(ISBLANK(M28),\"Please enter a value\",\"\")),\"\")","v":""}]
[]
[null,null,null,"Check the evidence you have available to work out the number of units you can claim (for example, GOTS certificates, the Better Cotton Trader or Output Declaration Forms), or use this tool speculatively when negotiating with suppliers."]
[]
[null,null,"4. Results"]
[]
[null,null,"Many brands and retailers see typical transactions as having an impact of much less than 1% of their goal. This is not unusual, as progress is generally made in small increments, with individual transactions accumulating over time.\n\nResults are approximate and based on the information you have entered and our assumptions. See '4. Methodology' for more details. Results should be used to guide decision making, rather than being considered verified and wholly accurate. "]
[]
[null,null,null,"4a. Percentage contribution from this transaction:",null,null,null,null,null,null,null,null,{"$f":"IF(ISBLANK(M8),\"\",Calculations!$F$39)","v":""}]
[null,null,null,null,{"$f":"IF(ISBLANK(M8),\"\",IF(Calculations!F17=0,\"Please use the previous worksheet to calculate your cotton baseline\",\"\"))","v":""}]

{"sheet":"4. Methodology","index":4,"n_rows":32,"n_cols":6,"rows_kept":32,"cut":false,"hidden":false,"merged":[[10,2,10,13],[15,2,15,13]]}
[]
[null,"4. Methodology"]
[]
[]
[null,null,"Click to conctact us:",null,null,"Email"]
[null,null,null,null,null,"Website"]
[]
[]
[null,null,"How we calculate your results"]
[]
[null,null,"Based on the data you provide, we calculate a total cotton tonnage used by your organisation for the year. We do this either by directly using the weight data you provide to us, or calculating it using the following equation:"]
[]
[]
[]
[]
[null,null,"We then calculate the total use of more sustainable cotton. If you know the total amount of sustainanable cotton purchased (for example, the total Kg of organic cotton fabric), we use this figure directly, after accounting for wastage using industry standard rates, if necessary. Otherwise, we calculate the total amount of sustainable cotton from the product transaction details:"]
[]
[]
[]
[]
[null,null,"The results from these two equations are used to calculate the total contribution (in %) of the transaction that you entered in the sheet "]
[null,null,"3. Transaction Details'"]
[]
[]
[]
[]
[null,null,"Assumptions"]
[]
[null,null,"To simplify calculations and allow users to quickly generate results, we use industry average weights for product categories."]
[null,null,"Babywear and childrenswear are not included in the scope of this calculator."]
[]
[null,null,"If you would like a custom version of this calculator created for your brand, please contact us using the e-mail link above."]

{"sheet":"Controllers","index":5,"n_rows":2,"n_cols":2,"rows_kept":2,"cut":false,"hidden":true,"merged":[]}
["Data Entry",{"$f":"IF(ISBLANK('2. Data Entry'!K8),-1,IF('2. Data Entry'!K8=\"Using our known cotton use\",1,0))","v":-1}]
["Forecasting",{"$f":"IF(ISBLANK('3. Transaction Details'!M8),-1,IF('3. Transaction Details'!M8=\"Using Product Details\",1,0))","v":-1}]

{"sheet":"Calculations","index":6,"n_rows":39,"n_cols":7,"rows_kept":39,"cut":false,"hidden":true,"merged":[]}
[null,"Step 1: Define Baseline Cotton Use"]
[]
[null,"Calculation Type:",null,null,null,{"$f":"IF(ISBLANK('2. Data Entry'!K8),-1,VLOOKUP('2. Data Entry'!K8,CalcReference!$A$2:$B$4,2,FALSE))","v":-1}]
[]
[null,"Weight of cotton (stated):",null,null,null,{"$f":"IF(F3=-1,0,IF(F3=1,'2. Data Entry'!K11,0))","v":0}]
[null,"Units:",null,null,null,{"$f":"'2. Data Entry'!K14","v":0}]
[null,"Conversion Factor",null,null,null,{"$f":"VLOOKUP(F6,Reference!$D:$E,2,FALSE)","v":{"$error":"#N/A"}}]
[null,"Total Cotton Weight (t)",null,null,null,{"$f":"F7*F5","v":{"$error":"#N/A"}}]
[]
[null,"Product Volume:",null,null,null,{"$f":"'2. Data Entry'!K19","v":0}]
[null,"Product Type:",null,null,null,{"$f":"'2. Data Entry'!K22","v":0}]
[null,"Typical weight (g)",null,null,null,{"$f":"VLOOKUP(F11,Reference!$H:$I,2,FALSE)","v":{"$error":"#N/A"}},"g"]
[null,"Total proportion cotton:",null,null,null,{"$f":"'2. Data Entry'!K25","v":0.55000000000000004}]
[null,"Total weight cotton (g):",null,null,null,{"$f":"F13*F12*F10","v":{"$error":"#N/A"}}]
[null,"Total Cotton weight (t)",null,null,null,{"$f":"F14/1000000","v":{"$error":"#N/A"}}]
[]
[null,"Final Cotton Weight (t)",null,null,null,{"$f":"IFERROR(IF(F3=-1,0,IF(F3=1,F8,IF(F3=0,F15,))),0)","v":0}]
[]
[null,"Step 2: Define Sustainable Cotton Use"]
[]
[null,"Calculation Type:",null,null,null,{"$f":"IF(ISBLANK('3. Transaction Details'!M8),-1,VLOOKUP('3. Transaction Details'!M8,CalcReference!$A$7:$B$9,2,FALSE))","v":-1}]
[]
[null,"Sustainable product:",null,null,null,{"$f":"'3. Transaction Details'!M13","v":0}]
[null,"Product weight:",null,null,null,{"$f":"VLOOKUP(F23,ProductTypeWeight_Table,2,FALSE)","v":{"$error":"#N/A"}},"g"]
[null,"Typical cotton %:",null,null,null,{"$f":"'3. Transaction Details'!M16","v":0}]
[null,"Volume purchased:",null,null,null,{"$f":"'3. Transaction Details'!M19","v":0}]
[null,"Total weight sustainable cotton (t)",null,null,null,{"$f":"F24*F25*F26/1000000","v":{"$error":"#N/A"}}]
[]
[null,"Type of Units:",null,null,null,{"$f":"'3. Transaction Details'!M22","v":0}]
[null,"Volume of Units:",null,null,null,{"$f":"'3. Transaction Details'!M25","v":0}]
[null,"CF",null,null,null,{"$f":"VLOOKUP(F29,SustCotUnitsCF_Table,2,FALSE)","v":{"$error":"#N/A"}}]
[null,"Weighting Factor",null,null,null,{"$f":"IF(VLOOKUP('3. Transaction Details'!$M$22,Reference!$J:$L,3,FALSE)=TRUE,1,'3. Transaction Details'!M28)","v":{"$error":"#N/A"}}]
[null,"Final (t) sustainable cotton:",null,null,null,{"$f":"(F32*F30)/F31/1000","v":{"$error":"#N/A"}}]
[]
[null,"Final sustainable cotton (t)",null,null,null,{"$f":"IFERROR(IF(F21=-1,0,IF(F21=1,F27,IF(F21=0,F33,))),0)","v":0}]
[]
[null,"Calculations"]
[]
[null,"% Sustainable Cotton",null,null,null,{"$f":"IFERROR(F35/F17,0)","v":0}]

{"sheet":"CalcReference","index":7,"n_rows":11,"n_cols":2,"rows_kept":11,"cut":false,"hidden":true,"merged":[]}
["Weight vs. Volume","Code"]
["<Blank>",-1]
[{"$f":"Reference!B3","v":"By calculating our cotton use from sales"},0]
[{"$f":"Reference!B2","v":"Using our known cotton use"},1]
[]
["Products vs. evidence"]
["<Blank>",-1]
[{"$f":"Reference!C3","v":"Using chain of custody evidence"},0]
[{"$f":"Reference!C2","v":"Using product details"},1]
[]
["Organic/Recycled GreyedOut"]

{"sheet":"Reference","index":8,"n_rows":11,"n_cols":12,"rows_kept":11,"cut":false,"hidden":true,"merged":[]}
["Yes/No","Weight vs. Volume","Products vs. evidence","Units","Conversion to metric tonnes","Product Type","Product Weight","Sales type","Typical product weight","Sustainable Cotton Units","Conversion to fabric","GreyedOut?"]
["Yes","Using our known cotton use","Using product details","Kg",1E-3,"Casual Tops",{"$f":"AVERAGEIF('Industry Weights'!$C:$C,F2,'Industry Weights'!$B:$B)","v":183.42857142857142},"We sell a mix of products",{"$f":"AVERAGE($G$2:$G$11)","v":331.47847652347656},"Better Cotton Claim Units",{"$f":"'Supply Chain Multipliers'!B9","v":1.6339869281045749},true]
["No","By calculating our cotton use from sales","Using chain of custody evidence","Metric Tonnes (t)",1,"Dresses & Playsuits",{"$f":"AVERAGEIF('Industry Weights'!$C:$C,F3,'Industry Weights'!$B:$B)","v":284.5},"Mostly lightweight (e.g. hosiery, underwear)",{"$f":"G11","v":69.15384615384616},"Kg CMiA lint",{"$f":"K2","v":1.6339869281045749},true]
[null,null,null,"Imperial tons",1.0160499999999999,"Jeans & Trousers",{"$f":"AVERAGEIF('Industry Weights'!$C:$C,F4,'Industry Weights'!$B:$B)","v":431.42857142857144},"Mostly midweight (e.g. t-shirts, knitwear, shorts)",{"$f":"AVERAGE(G2,G3,G4,G5,G6,G8,G9,G10)","v":315.89704670329672},"Kg organic yarn",{"$f":"'Supply Chain Multipliers'!F4","v":1.6339869281045749},false]
[null,null,null,null,null,"Knitwear & Sweaters",{"$f":"AVERAGEIF('Industry Weights'!$C:$C,F5,'Industry Weights'!$B:$B)","v":405.76923076923077},"Mostly heavyweight (e.g. outerwear)",{"$f":"G7","v":718.4545454545455},"Kg organic fabric",{"$f":"'Supply Chain Multipliers'!F5","v":1.4705882352941175},false]
[null,null,null,null,null,"Nightwear & Gowns",{"$f":"AVERAGEIF('Industry Weights'!$C:$C,F6,'Industry Weights'!$B:$B)","v":439.5},null,null,"Kg organic products",{"$f":"'Supply Chain Multipliers'!F6","v":1},false]
[null,null,null,null,null,"Outerwear & Jackets",{"$f":"AVERAGEIF('Industry Weights'!$C:$C,F7,'Industry Weights'!$B:$B)","v":718.4545454545455},null,null,"Kg recycled yarn",{"$f":"K4","v":1.6339869281045749},false]
[null,null,null,null,null,"Shirts & Blouses",{"$f":"AVERAGEIF('Industry Weights'!$C:$C,F8,'Industry Weights'!$B:$B)","v":182},null,null,"Kg recycled fabric",{"$f":"K5","v":1.4705882352941175},false]
[null,null,null,null,null,"Shorts & Skirts",{"$f":"AVERAGEIF('Industry Weights'!$C:$C,F9,'Industry Weights'!$B:$B)","v":226.75},null,null,"Kg recycled products",{"$f":"K6","v":1},false]
[null,null,null,null,null,"Tailored Suits & Jackets",{"$f":"AVERAGEIF('Industry Weights'!$C:$C,F10,'Industry Weights'!$B:$B)","v":373.8}]
[null,null,null,null,null,"Underwear & Socks",{"$f":"AVERAGEIF('Industry Weights'!$C:$C,F11,'Industry Weights'!$B:$B)","v":69.15384615384616}]

{"sheet":"Supply Chain Multipliers","index":9,"n_rows":9,"n_cols":7,"rows_kept":9,"cut":false,"hidden":true,"merged":[[0,1,0,5]]}
["Supply Chain Losses Multiplier","Tonnes Lint / Tonne Product",null,null,null,null,"Notes"]
["Supply Chain Stage (seller)","Lint","Yarn","Fabric","Garments"]
["Tier 4: Ginner [Sale of lint]",1,{"$f":"B3/0.68","v":1.4705882352941175},{"$f":"C3/0.9","v":1.6339869281045749},{"$f":"D3","v":1.6339869281045749},{"$f":"MAX(B3:E3)","v":1.6339869281045749}]
["Tier 3: Spinner [Sale of yarn]",1,{"$f":"B4/0.68","v":1.4705882352941175},{"$f":"C4/0.9","v":1.6339869281045749},"N/A",{"$f":"MAX(B4:E4)","v":1.6339869281045749}]
["Tier 2: Mill [Sale of fabric]",1,{"$f":"B5/0.68","v":1.4705882352941175},"N/A",{"$f":"D5","v":"N/A"},{"$f":"MAX(B5:E5)","v":1.4705882352941175}]
["Tier 1: Cut, Make & Trim [Sale of product]",1,"N/A","N/A",{"$f":"D6","v":"N/A"},{"$f":"MAX(B6:E6)","v":1}]
["Unknown",1,{"$f":"B7/0.68","v":1.4705882352941175},{"$f":"C7/0.9","v":1.6339869281045749},{"$f":"D7","v":1.6339869281045749},{"$f":"MAX(B7:E7)","v":1.6339869281045749},"Worst case scenario"]
[]
["BCI Factor",{"$f":"MAX(F2:F7)","v":1.6339869281045749}]

{"sheet":"Industry Weights","index":10,"n_rows":77,"n_cols":3,"rows_kept":77,"cut":false,"hidden":true,"merged":[]}
["Item","Weight \n(grams)","Category"]
["Menswear - Brief",51,"Underwear & Socks"]
["Menswear - Casual  Trouser",514,"Jeans & Trousers"]
["Menswear - Casual Shorts",276,"Shorts & Skirts"]
["Menswear - Fitted Boxer",75,"Underwear & socks"]
["Menswear - Fleece Jacket",323,"Outerwear & Jackets"]
["Menswear - Formal Trousers",350,"Jeans & Trousers"]
["Menswear - Heavy Weight Knitwear",650,"Knitwear & sweaters"]
["Menswear - Hoody",646,"Knitwear & sweaters"]
["Menswear - Jackets (Main Fabric Only)",500,"Outerwear & Jackets"]
["Menswear - Jean",718,"Jeans & Trousers"]
["Menswear - Knickers/Pants",77,"Underwear & socks"]
["Menswear - Lightweight Knitwear",283,"Knitwear & sweaters"]
["Menswear - Ligthweight Shorts",164,"Shorts & Skirts"]
["Menswear - Loose Fit Boxer",63,"Underwear & socks"]
["Menswear - Outerwear Coats/Jackets - Heavyweight",1369,"Outerwear & Jackets"]
["Menswear - Outerwear Jackets - Lightweight",701,"Outerwear & Jackets"]
["Menswear - Outerwear Jackets - Midweight",927,"Outerwear & Jackets"]
["Menswear - Polo Shirt",229,"Casual tops"]
["Menswear - Pyjamas Heavyweight",493,"Nightwear & Gowns"]
["Menswear - Pyjamas Lightweight",358,"Nightwear & Gowns"]
["Menswear - Rugby Tops",442,"Knitwear & sweaters"]
["Menswear - Socks",36,"Underwear & socks"]
["Menswear - Suit Jacket (Main Fabric Only)",500,"Tailored Suits & Jackets"]
["Menswear - Suit Trouser",402,"Tailored Suits & Jackets"]
["Menswear - Sweat Top",500,"Knitwear & Sweaters"]
["Menswear - Tee Shirt Long Sleeve",258,"Casual tops"]
["Menswear - Tee Shirt Short Sleeve",266,"Casual tops"]
["Menswear - Underwear Vests",103,"Underwear & Socks"]
["Menswear - Woven Formal/Casual Shirt  Ss",225,"Shirts & Blouses"]
["Menswear - Woven Formal/Casual Shirt Ls",243,"Shirts & Blouses"]
["Womenswear - Bras - Lace Underwired",80,"Underwear & socks"]
["Womenswear - Bras - Nonwired",39,"Underwear & socks"]
["Womenswear - Bras - Padded Underwired",112,"Underwear & socks"]
["Womenswear - Cargo Trouser",243,"Jeans & Trousers"]
["Womenswear - Casual Jacket",653,"Outerwear & Jackets"]
["Womenswear - Casual Skirt",197,"Shorts & Skirts"]
["Womenswear - Casual Trouser",364,"Jeans & Trousers"]
["Womenswear - Dressing Gowns Heavy Weight",1080,"Nightwear & Gowns"]
["Womenswear - Dressing Gowns Light Weight",306,"Nightwear & Gowns"]
["Womenswear - Fleece Jacket",327,"Outerwear & Jackets"]
["Womenswear - Formal Suit Dress (Main Fabric Only)",350,"Tailored Suits & Jackets"]
["Womenswear - Heavy Tights",73,"Underwear & Socks"]
["Womenswear - Hoody",489,"Knitwear & sweaters"]
["Womenswear - Jean",478,"Jeans & Trousers"]
["Womenswear - Jersey Nightwear",344,"Nightwear & Gowns"]
["Womenswear - Jogger Pant",353,"Jeans & Trousers"]
["Womenswear - Knickers/Pants",29,"Underwear & Socks"]
["Womenswear - Knit Formal Top",296,"Knitwear & sweaters"]
["Womenswear - Knitted Dress",255,"Knitwear & sweaters"]
["Womenswear - Knitwear Heavy Knit",402,"Knitwear & sweaters"]
["Womenswear - Knitwear Light Knit",226,"Knitwear & sweaters"]
["Womenswear - Knitwear Summer Weight",159,"Knitwear & sweaters"]
["Womenswear - Leggings",130,"Underwear & Socks"]
["Womenswear - Lightweight Mac (Main Fabric Only)",362,"Outerwear & Jackets"]
["Womenswear - Maxi Dress",433,"Dresses & Playsuits"]
["Womenswear - Playsuit (Long)",214,"Dresses & Playsuits"]
["Womenswear - Playsuit (Short)",228,"Dresses & Playsuits"]
["Womenswear - Pyjamas Heavy",452,"Nightwear & Gowns"]
["Womenswear - Pyjamas Light Weight",371,"Nightwear & Gowns"]
["Womenswear - Slips",112,"Nightwear & Gowns"]
["Womenswear - Socks",31,"Underwear & Socks"]
["Womenswear - Spring Mid Weight Coat (Main Fabric Only)",633,"Outerwear & Jackets"]
["Womenswear - Standard Dress",263,"Dresses & Playsuits"]
["Womenswear - Sweat Jacket",495,"Knitwear & sweaters"]
["Womenswear - Sweat Tops/ Rugby Tops",432,"Knitwear & sweaters"]
["Womenswear - T Shirt Long Sleeve",176,"Casual tops"]
["Womenswear - T Shirt Short Sleeve",140,"Casual tops"]
["Womenswear - Tailored Jacket (Main Fabric Only)",300,"Tailored Suits & Jackets"]
["Womenswear - Tailored Skirt",270,"Shorts & Skirts"]
["Womenswear - Tailored Trousers",317,"Tailored Suits & Jackets"]
["Womenswear - Thick Strap Vests",120,"Casual tops"]
["Womenswear - Vests Jersey Cami",95,"Casual tops"]
["Womenswear - Winter H.Weight Coat (Main Fabric Only)",1056,"Outerwear & Jackets"]
["Womenswear - Winter Raincoat/Mac (Main Fabric Only)",1052,"Outerwear & Jackets"]
["Womenswear - Woven Formal/Casual Shirt Long Sl",130,"Shirts & Blouses"]
["Womenswear - Woven Formal/Casual Shirt Short Sl",130,"Shirts & Blouses"]